Workbook

Sheet KOSTEN HERINRICHTING
B1: Werkblad voor berekening verbouwingskosten keuken
B3: Categorie | C3: Artikelen | D3: Aantal | E3: Geschatte kosten | F3: Werkelijke kosten | G3: Totale geschatte kosten | H3: Totale werkelijke kosten
B4: Kasten | C4: Onderkasten: Modulair-standaard (aantal in strekkende cm) | D4: 25 | E4: € 5.00 | G4: =Gegevens[[#This Row],[Aantal]]*Gegevens[[#This Row],[Geschatte kosten]] -> € 125 | H4: =Gegevens[[#This Row],[Aantal]]*Gegevens[[#This Row],[Werkelijke kosten]] -> € 0
B5: Kasten | C5: Bovenkasten: Modulair-standaard (aantal in strekkende cm) | D5: 25 | E5: € 3.50 | G5: =Gegevens[[#This Row],[Aantal]]*Gegevens[[#This Row],[Geschatte kosten]] -> € 88 | H5: =Gegevens[[#This Row],[Aantal]]*Gegevens[[#This Row],[Werkelijke kosten]] -> € 0
B6: Reinigingsmiddelen | C6: Vaatwasser: Standaard | D6: 1 | E6: € 250.00 | G6: =Gegevens[[#This Row],[Aantal]]*Gegevens[[#This Row],[Geschatte kosten]] -> € 250 | H6: =Gegevens[[#This Row],[Aantal]]*Gegevens[[#This Row],[Werkelijke kosten]] -> € 0
B7: Reinigingsmiddelen | C7: Afval: Standaard | D7: 1 | E7: € 175.00 | G7: =Gegevens[[#This Row],[Aantal]]*Gegevens[[#This Row],[Geschatte kosten]] -> € 175 | H7: =Gegevens[[#This Row],[Aantal]]*Gegevens[[#This Row],[Werkelijke kosten]] -> € 0
B8: Kookapparatuur | C8: Bereik: Schuiflade standaard | D8: 1 | E8: € 375.00 | G8: =Gegevens[[#This Row],[Aantal]]*Gegevens[[#This Row],[Geschatte kosten]] -> € 375 | H8: =Gegevens[[#This Row],[Aantal]]*Gegevens[[#This Row],[Werkelijke kosten]] -> € 0
B9: Kookapparatuur | C9: Magnetron: Standaard | D9: 1 | E9: € 300.00 | G9: =Gegevens[[#This Row],[Aantal]]*Gegevens[[#This Row],[Geschatte kosten]] -> € 300 | H9: =Gegevens[[#This Row],[Aantal]]*Gegevens[[#This Row],[Werkelijke kosten]] -> € 0
B10: Aanrechten | C10: Effen oppervlak (aantal in strekkende cm) | D10: 23 | E10: € 10.00 | G10: =Gegevens[[#This Row],[Aantal]]*Gegevens[[#This Row],[Geschatte kosten]] -> € 230 | H10: =Gegevens[[#This Row],[Aantal]]*Gegevens[[#This Row],[Werkelijke kosten]] -> € 0
B11: Deuren | C11: Binnenkant: Gefineerd kunststof | D11: 1 | E11: € 65.00 | G11: =Gegevens[[#This Row],[Aantal]]*Gegevens[[#This Row],[Geschatte kosten]] -> € 65 | H11: =Gegevens[[#This Row],[Aantal]]*Gegevens[[#This Row],[Werkelijke kosten]] -> € 0
B12: Extra's | C12: Extra's: Direct heet water standaard | D12: 1 | E12: € 120.00 | G12: =Gegevens[[#This Row],[Aantal]]*Gegevens[[#This Row],[Geschatte kosten]] -> € 120 | H12: =Gegevens[[#This Row],[Aantal]]*Gegevens[[#This Row],[Werkelijke kosten]] -> € 0
B13: Extra's | C13: Extra's: Zeepautomaat | D13: 1 | E13: € 40.00 | G13: =Gegevens[[#This Row],[Aantal]]*Gegevens[[#This Row],[Geschatte kosten]] -> € 40 | H13: =Gegevens[[#This Row],[Aantal]]*Gegevens[[#This Row],[Werkelijke kosten]] -> € 0
B14: Kranen | C14: Kraan: Hendel, Standard | D14: 1 | E14: € 130.00 | G14: =Gegevens[[#This Row],[Aantal]]*Gegevens[[#This Row],[Geschatte kosten]] -> € 130 | H14: =Gegevens[[#This Row],[Aantal]]*Gegevens[[#This Row],[Werkelijke kosten]] -> € 0
B15: Vloeren | C15: Laminaat (aantal in vierkante cm) | D15: 165 | E15: € 3.50 | G15: =Gegevens[[#This Row],[Aantal]]*Gegevens[[#This Row],[Geschatte kosten]] -> € 578 | H15: =Gegevens[[#This Row],[Aantal]]*Gegevens[[#This Row],[Werkelijke kosten]] -> € 0
B16: Wasmachines | C16: Wasmachine: Standaard | D16: 1 | E16: € 500.00 | G16: =Gegevens[[#This Row],[Aantal]]*Gegevens[[#This Row],[Geschatte kosten]] -> € 500 | H16: =Gegevens[[#This Row],[Aantal]]*Gegevens[[#This Row],[Werkelijke kosten]] -> € 0
B17: Wasmachines | C17: Droger: Standaard | D17: 1 | E17: € 375.00 | G17: =Gegevens[[#This Row],[Aantal]]*Gegevens[[#This Row],[Geschatte kosten]] -> € 375 | H17: =Gegevens[[#This Row],[Aantal]]*Gegevens[[#This Row],[Werkelijke kosten]] -> € 0
B18: Verlichting | C18: Verlichting: Verzonken kan | D18: 4 | E18: € 35.00 | G18: =Gegevens[[#This Row],[Aantal]]*Gegevens[[#This Row],[Geschatte kosten]] -> € 140 | H18: =Gegevens[[#This Row],[Aantal]]*Gegevens[[#This Row],[Werkelijke kosten]] -> € 0
B19: Koelkasten | C19: Koelkast: Vrijstaand, luxe uitvoering | D19: 1 | E19: € 1,200.00 | G19: =Gegevens[[#This Row],[Aantal]]*Gegevens[[#This Row],[Geschatte kosten]] -> € 1,200 | H19: =Gegevens[[#This Row],[Aantal]]*Gegevens[[#This Row],[Werkelijke kosten]] -> € 0
B20: Gootstenen | C20: Dubbele spoelbak, roestvrijstaal, luxe uitvoering | D20: 1 | E20: € 125.00 | G20: =Gegevens[[#This Row],[Aantal]]*Gegevens[[#This Row],[Geschatte kosten]] -> € 125 | H20: =Gegevens[[#This Row],[Aantal]]*Gegevens[[#This Row],[Werkelijke kosten]] -> € 0
B21: Ventilatie | C21: Afzuigkap: Kanaaluitvoering standaard | D21: 1 | E21: € 180.00 | G21: =Gegevens[[#This Row],[Aantal]]*Gegevens[[#This Row],[Geschatte kosten]] -> € 180 | H21: =Gegevens[[#This Row],[Aantal]]*Gegevens[[#This Row],[Werkelijke kosten]] -> € 0
B22: Muren | C22: Wandplaat (aantal in vierkante cm) | D22: 70 | E22: € 2.00 | G22: =Gegevens[[#This Row],[Aantal]]*Gegevens[[#This Row],[Geschatte kosten]] -> € 140 | H22: =Gegevens[[#This Row],[Aantal]]*Gegevens[[#This Row],[Werkelijke kosten]] -> € 0
B23: Ramen | C23: Schuivend | D23: 2 | E23: € 120.00 | G23: =Gegevens[[#This Row],[Aantal]]*Gegevens[[#This Row],[Geschatte kosten]] -> € 240 | H23: =Gegevens[[#This Row],[Aantal]]*Gegevens[[#This Row],[Werkelijke kosten]] -> € 0
B24: Overig | G24: =Gegevens[[#This Row],[Aantal]]*Gegevens[[#This Row],[Geschatte kosten]] -> € 0 | H24: =Gegevens[[#This Row],[Aantal]]*Gegevens[[#This Row],[Werkelijke kosten]] -> € 0
B25: Totaal | E25: =SUBTOTAL(109,Gegevens[Geschatte kosten]) -> € 4,014.00 | F25: =SUBTOTAL(109,Gegevens[Werkelijke kosten]) -> € 0.00 | G25: =SUBTOTAL(109,Gegevens[Totale geschatte kosten]) -> € 5,375.00 | H25: =SUBTOTAL(109,Gegevens[Totale werkelijke kosten]) -> € 0.00
B26: Subtotaal | G26: =SUBTOTAL(109,Gegevens[Totale geschatte kosten]) -> € 5,375.00 | H26: =SUBTOTAL(109,Gegevens[Totale werkelijke kosten]) -> € 0.00
B27: Onvoorziene kosten - toevoegen 30% | G27: =G26*0.3 -> € 1,612.50 | H27: =H26*0.3 -> € 0.00
B28: Totaal | G28: =SUM(G26:G27) -> € 6,987.50 | H28: =SUM(H26:H27) -> € 0.00
